Cogmind - Beta 11 X10 @@@ ROGUE MODE // 2022.02.18 @ 03:59:08 Player: maxwell Result: Self-destructed Performance ------------- Evolutions (3) 1500 Regions Visited (9) 1800 Robots Destroyed (106) 530 Value Destroyed (3566) 3566 Prototype IDs (8) 160 Alien Tech Used (0) 0 Bonus (1479) 1479 TOTAL SCORE: 9035 Bonus ------- High Alert Combat Kills 267 Follower Combat Kills 405 Entered Garrisons 400 Used RIF Installer 500 Friendly Fire -93 Cogmind --------- Core Integrity 328/700 Matter 181/300 Energy 54/100 System Corruption 0% Temperature Warm (167) Movement Core (1400) Ox27 Location -7/Garrison Parts ------- > --- POWER (2) -------- (None) > --- PROPULSION (2) --- (None) > --- UTILITY (7) ------ Coolant Injector Huge Storage Unit Advanced Visual Processing Unit Advanced Targeting Computer Improved Utility Shielding Relay Coupler [Sentry] (3) Relay Coupler [Behemoth] (7) > --- WEAPON (2) ------- (None) > --- INVENTORY (25) --- Improved Heat Sink Huge Storage Unit Medium Battery (150) Large Matter Pod (150) Transmission Jammer Improved Utility Shielding Hardened Heavy Armor Plating Hacking Suite Hacking Suite Relay Coupler [NC] (25) Relay Coupler [Grunt] (20) Relay Coupler [Duelist] (28) Relay Coupler [Heavy] (9) Dynamic Insulation System Makeshift System Restoration Module Improved Trap Extractor (0/6) Shock Rifle Lightning Gun Proton Missile Launcher Remote Datajack Heavy Mace Peak State ------------ > --- POWER ------------ Nuclear Core Nuclear Core > --- PROPULSION ------- Compact Wheel Compact Wheel > --- UTILITY ---------- Coolant Injector Huge Storage Unit Advanced Visual Processing Unit Advanced Targeting Computer Improved Utility Shielding Relay Coupler [Sentry] Relay Coupler [Behemoth] > --- WEAPON ----------- Advanced Beam Rifle Heavy Mace > --- INVENTORY -------- Light Nuclear Core Improved Heat Sink Improved Heat Sink Huge Storage Unit Medium Battery Large Matter Pod Transmission Jammer Improved Utility Shielding Hardened Heavy Armor Plating Hacking Suite Hacking Suite Relay Coupler [NC] Relay Coupler [Duelist] Relay Coupler [Heavy] Dynamic Insulation System Makeshift System Restoration Module Improved Trap Extractor Shock Rifle Lightning Gun Lightning Gun Advanced Beam Rifle Proton Missile Launcher Rocket Launcher Remote Datajack [Rating: 47] Favorites ----------- Power Ion Engine Engine Ion Engine Power Core Nuclear Core Propulsion Light Treads Treads Light Treads Wheel Compact Wheel Utility High-capacity Storage Unit Device Improved Heat Sink Storage High-capacity Storage Unit Processor Improved Targeting Computer Hackware Hacking Suite Protection Improved Propulsion Shielding Weapon Improved Assault Rifle Energy Gun Shock Rifle Energy Cannon Beam Cannon Ballistic Gun Improved Assault Rifle Launcher Grenade Launcher Special Weapon Remote Datajack Impact Weapon Heavy Mace Build | -11 -10 -10 -10 -9 -8 -8 -8 -7 -7 ------- Run | Scr Mat Min Exi Min Mat Gar Mat Fac Gar Slots Evolved 6 | . . . . . 4 . . 2 . Power 1 | . . . . . . . . 1 . Propulsion . | . . . . . . . . . . Utility 5 | . . . . . 4 . . 1 . Weapon . | . . . . . . . . . . Parts Attached 115 | 6 9 3 2 . 33 13 16 27 6 Power 13 | 1 . . . . 4 1 2 3 2 Engine 7 | 1 . . . . 3 1 1 1 . Core 6 | . . . . . 1 . 1 2 2 Reactor . | . . . . . . . . . . Propulsion 15 | 4 1 . . . 6 . 2 2 . Treads 5 | 2 1 . . . 2 . . . . Leg . | . . . . . . . . . . Wheel 10 | 2 . . . . 4 . 2 2 . Hover . | . . . . . . . . . . Flight . | . . . . . . . . . . Utility 43 | 1 3 1 2 . 13 4 7 12 . Device 12 | . . . 2 . 6 2 . 2 . Storage 10 | 1 2 1 . . . . 3 3 . Processor 7 | . 1 . . . 3 . 1 2 . Hackware 4 | . . . . . 1 . 1 2 . Protection 10 | . . . . . 3 2 2 3 . Artifact . | . . . . . . . . . . Weapon 44 | . 5 2 . . 10 8 5 10 4 Energy Gun 28 | . . . . . 10 6 3 6 3 Energy Cannon 1 | . . 1 . . . . . . . Ballistic Gun 5 | . 5 . . . . . . . . Ballistic Cannon . | . . . . . . . . . . Launcher 6 | . . 1 . . . 2 1 1 1 Special Weapon 2 | . . . . . . . 1 1 . Impact Weapon 2 | . . . . . . . . 2 . Slashing Weapon . | . . . . . . . . . . Piercing Weapon . | . . . . . . . . . . Special Melee Weapon . | . . . . . . . . . . Unidentified Prototypes 3 | . 1 . . . 1 . 1 . . Parts Lost 33 | . . . . . 3 8 4 9 9 Power 8 | . . . . . . 1 2 2 3 Propulsion 5 | . . . . . . . 1 2 2 Utility 10 | . . . . . 1 4 1 4 . Weapon 10 | . . . . . 2 3 . 1 4 Highest Loss Streak 7 | . . . . . 1 3 1 3 7 To Critical Strikes . | . . . . . . . . . . Average Slot Usage (%) 96 | . 98 100 92 85 98 95 100 92 91 Engine 9 | . 14 14 14 14 6 9 4 2 . Core 1 | . . . . . 2 . 4 5 12 Treads 15 | . 28 28 28 28 9 . . . . Wheel 6 | . . . . . 8 18 18 14 12 Device 5 | . . . 3 . 9 9 9 4 7 Storage 12 | . 14 14 14 14 9 9 11 12 7 Processor 14 | . 12 14 3 . 22 18 18 20 15 Hackware 2 | . . . . . 9 2 . 2 15 Protection 4 | . . . . . 2 11 15 11 7 Energy Gun 6 | . . . . . 10 16 17 13 6 Energy Cannon 4 | . . 5 14 14 3 . . . . Ballistic Gun 9 | . 28 17 14 14 3 . . . . Naked Turns . | . . . . . . . . . . Heaviest Build 109 | 10 31 51 51 51 59 64 64 109 101 Greatest Support 40 | 40 40 40 40 40 40 28 28 32 32 Greatest Overweight (x) 4 | 3 . 1 1 1 2 2 4 3 3 Average Overweight (x) 1 | . . . 1 1 1 1 1 2 3 Largest Inventory Capacity 25 | 8 15 20 20 20 20 20 20 25 25 Average Capacity 19 | 7 10 18 20 20 20 20 20 23 25 Most Carried 25 | 5 10 14 20 20 20 20 20 25 25 Average Carried 17 | 3 9 12 19 20 19 17 19 20 23 Final Capacity 25 | 8 15 20 20 20 20 20 20 25 25 Final Carried 25 | 5 10 14 20 20 20 20 19 25 22 Class Distribution -------------------- 43% | Mutant 23% | Bothacker-Mutant 21% | Commander-Mutant 8% | Scavenger-Skirmisher 3% | Skirmisher Dominant Class ---------------- Mutant | -10/Materials Mutant | -10/Mines Commander-Mutant | -10/Exiles Commander-Mutant | -9/Mines Scavenger-Skirmisher | -8/Materials Mutant | -8/Garrison Bothacker-Mutant | -8/Materials Bothacker-Mutant | -7/Factory Bothacker-Mutant | -7/Garrison Resources | -11 -10 -10 -10 -9 -8 -8 -8 -7 -7 ----------- Run | Scr Mat Min Exi Min Mat Gar Mat Fac Gar Matter Collected 1941 | 159 534 224 101 3 362 145 150 260 3 Remotely . | . . . . . . . . . . Salvage Created 4421 | . 641 122 249 10 1007 843 795 688 66 Parts 244 | . 50 14 12 2 65 35 32 27 7 Haulers Intercepted 8 | . 2 . . . 4 . 2 . . Recyclers Shooed 3 | . . . . . 3 . . . . Parts Field Recycled . | . . . . . . . . . . Retrieved Matter . | . . . . . . . . . . Parts Self-Destructed . | . . . . . . . . . . Prevented . | . . . . . . . . . . Kills | -11 -10 -10 -10 -9 -8 -8 -8 -7 -7 ------- Run | Scr Mat Min Exi Min Mat Gar Mat Fac Gar Combat Hostiles Destroyed 82 | . 16 5 . . 13 17 11 12 8 Guns 55 | . 16 . . . 8 12 7 12 . Cannons 3 | . . 2 . . 1 . . . . AOE 18 | . . 3 . . 2 4 1 . 8 Classes Destroyed 10 | . 6 1 . . 2 . . 1 . Worker 3 | . . 1 . 1 1 . . . . Tunneler 2 | . 1 . . . 1 . . . . Hauler 8 | . 2 . . . 4 . 2 . . Operator 2 | . 1 . . . . . 1 . . Watcher 9 | . 2 . . . 3 . 1 3 . Swarmer 25 | . 6 3 . . 1 4 . 3 8 Grunt 39 | . 10 2 . . 6 9 8 4 . Sentry 13 | . . . . . 5 4 1 3 . Hunter 4 | . . . . . 1 . 2 1 . Programmer 1 | . . . . . . . . 1 . Best Kill Streak 7 | . 7 4 . 1 5 6 4 5 5 Combat Bots Only 6 | . 6 3 . . 4 6 4 5 5 Max Kills in Single Turn 3 | . 2 3 . 1 2 1 1 2 2 Gunslinging 1 | . . . . . . . . 1 . Exploded 2 | . . 2 . . 1 1 1 . 2 Melee . | . . . . . . . . . . Uniques/NPCs Destroyed . | . . . . . . . . . . Combat | -11 -10 -10 -10 -9 -8 -8 -8 -7 -7 -------- Run | Scr Mat Min Exi Min Mat Gar Mat Fac Gar Damage Taken 4738 | . 356 227 . 21 712 1056 506 1124 736 Core 990 | . 62 52 . . 128 248 128 153 219 Absorbed by Shields . | . . . . . . . . . . Redirected to Shielding 265 | . . . . . 19 87 18 85 56 Regen/Repaired (Parts) 74 | . . . . . 74 . . . . Core Remaining (%) 54 | 100 . . . 54 . . 8 . . Volleys Fired 273 | . 48 12 15 2 49 39 43 49 16 Largest 2 | . 2 2 2 2 2 2 2 2 2 Hottest 130 | . 46 83 83 83 100 110 118 130 116 Shots Fired 509 | . 97 23 30 4 97 66 79 91 22 Gun 448 | . 97 14 15 2 85 57 76 87 15 Cannon 36 | . . 7 15 2 12 . . . . Launcher 20 | . . 2 . . . 9 1 1 7 Special 5 | . . . . . . . 2 3 . Kinetic 141 | . 97 14 15 2 13 . . . . Thermal 150 | . . 7 15 2 12 . 23 83 8 Explosive 10 | . . 2 . . . . . 1 7 Electromagnetic 203 | . . . . . 72 66 54 4 7 Robot Hit Streak 20 | . 11 14 12 3 17 9 12 20 14 Robot Miss Streak 5 | . 4 1 1 2 5 2 2 2 1 Penetration Max . | . . . . . . . . . . Secondary Targets 14 | . 7 . . . 3 2 . 2 . Max Gunslinging Chain 1 | . 1 . . . 1 1 . 1 . Shots Hit Robots 361 | . 67 16 24 2 65 45 57 69 16 Core Hits 161 | . 28 9 7 . 29 28 22 26 12 Critical Kills 1 | . . . . . 1 . . . . Critical Parts Destroyed . | . . . . . . . . . . Critical Strikes 11 | . . . . . 2 1 3 5 . Burn 7 | . . . . . . . 2 5 . Meltdown 1 | . . . . . 1 . . . . Corrupt 3 | . . . . . 1 1 1 . . Melee Attacks 2 | . . . . . . . . 2 . Impact 2 | . . . . . . . . 2 . Slashing . | . . . . . . . . . . Piercing . | . . . . . . . . . . Sneak Attacks . | . . . . . . . . . . Combat Hostiles . | . . . . . . . . . . Follow-up Attacks . | . . . . . . . . . . Damage Inflicted 8483 | . 1018 471 434 32 1540 1190 1262 1508 1028 Guns 6062 | . 1009 147 184 13 1095 829 1143 1401 241 Cannons 467 | . . 73 250 19 125 . . . . Explosions 1907 | . . 242 . . 310 361 100 107 787 Melee . | . . . . . . . . . . Ramming 47 | . 9 9 . . 10 . 19 . . Kinetic 1481 | . 1009 147 184 13 128 . . . . Thermal 2575 | . . 73 250 19 435 69 350 1259 120 Explosive 1136 | . . 242 . . . . . 107 787 Electromagnetic 3244 | . . . . . 967 1121 893 142 121 Impact . | . . . . . . . . . . Slashing . | . . . . . . . . . . Piercing . | . . . . . . . . . . Highest Corruption 6 | . 6 6 6 . 1 . 1 . . Average Corruption 4 | . 2 6 4 . 1 . 1 . . Corruption Purged 7 | . . . 6 . 1 . . . . Corruption Blocked . | . . . . . . . . . . Effects 72 | . 9 41 18 . 1 . 3 . . Message Errors 24 | . 3 15 5 . . . 1 . . Matter Fused 16 | . 2 9 4 . . . 1 . . Heat Flow Errors 5 | . . 4 1 . . . . . . Energy Discharges 11 | . 2 4 4 . . . 1 . . Data Loss (minor) 8 | . 1 5 1 . 1 . . . . Data Loss (major) 4 | . . 2 2 . . . . . . Misfires 2 | . 1 1 . . . . . . . Alerts 2 | . . 1 1 . . . . . . Overload Shots . | . . . . . . . . . . Overflow Damage 38 | . . 12 4 . . 18 . . 4 Projectiles 4 | . . . 4 . . . . . . Explosions 34 | . . 12 . . . 18 . . 4 Melee . | . . . . . . . . . . Knockbacks 1 | . . . . . . . 1 . . Impact 1 | . . . . . . . 1 . . Kinetic . | . . . . . . . . . . Secondary . | . . . . . . . . . . Self-Inflicted Damage 175 | . . 23 . . . 61 18 . 73 Shots 8 | . . 1 . . . 3 1 . 3 Rammed 6 | . 1 3 . . 1 . 1 . . Targets Rammed 8 | . 2 3 . 1 1 . 1 . . Kicked . | . . . . . . . . . . Crushed 2 | . 1 . . 1 . . . . . Highest Temperature 433 | . 6 250 177 21 168 24 63 433 197 Average Temperature 66 | . 2 113 49 11 50 8 17 109 103 Received Heat Transfer 1482 | . 90 96 . 12 276 441 207 300 60 Effects 2 | . . . . . . . . 2 . Shutdowns 2 | . . . . . . . . 2 . Siege Activations . | . . . . . . . . . . Robots Corrupted 5 | . . . . . 1 1 2 1 . Combat Hostiles 4 | . . . . . 1 1 2 . . Parts Fried 16 | . . . . . 7 3 4 2 . Impact Corruptions . | . . . . . . . . . . Robots Melted 2 | . . . . . 1 . 1 . . Combat Hostiles 2 | . . . . . 1 . 1 . . Parts Melted 15 | . . . . . 2 . 4 9 . Heat Transferred 5026 | . . 148 481 37 609 75 790 2664 222 Parts Sabotaged . | . . . . . . . . . . Parts Stolen . | . . . . . . . . . . Parts Stripped . | . . . . . . . . . . Power Chain Reactions 10 | . . . . . 5 4 1 . . Missiles Intercepted . | . . . . . . . . . . Alert | -11 -10 -10 -10 -9 -8 -8 -8 -7 -7 ------- Run | Scr Mat Min Exi Min Mat Gar Mat Fac Gar Peak Influence 671 | . 308 166 . 91 538 671 615 334 274 Initial 326 | . . 86 . . 35 280 326 179 109 Average 243 | . 180 41 . 61 333 498 468 190 188 Maximum Alert Level 2 | . 1 . . . 2 2 2 1 1 Low Security (%) 44 | 100 61 100 . 100 6 . . 58 77 Level 1 39 | . 38 . . . 80 26 21 41 22 Level 2 16 | . . . . . 13 73 78 . . Level 3 . | . . . . . . . . . . Level 4 . | . . . . . . . . . . Level 5 . | . . . . . . . . . . High Security . | . . . . . . . . . . Max Security . | . . . . . . . . . . Squads Dispatched 17 | . 4 . . 1 3 . 5 4 . Investigation 8 | . 3 . . 1 1 . 2 1 . Extermination 2 | . . . . . . . . 2 . Reinforcement 6 | . 1 . . . 1 . 3 1 . Assault . | . . . . . . . . . . Garrison 1 | . . . . . 1 . . . . Intercept . | . . . . . . . . . . Construction Impeded . | . . . . . . . . . . Haulers Reinforced . | . . . . . . . . . . Active Scanning Responses . | . . . . . . . . . . Cargo Convoy Interrupts . | . . . . . . . . . . Stealth | -11 -10 -10 -10 -9 -8 -8 -8 -7 -7 --------- Run | Scr Mat Min Exi Min Mat Gar Mat Fac Gar Distress Signals 9 | . 2 . . . 5 . 2 . . Communications Jammed . | . . . . . . . . . . Distress Signals . | . . . . . . . . . . Times Spotted 142 | . 24 5 . 3 35 21 23 18 13 Peak Tracking Total 7 | . 5 3 . 2 5 6 5 5 7 Tactical Retreats 8 | . 1 . . . 1 3 3 . . Traps | -11 -10 -10 -10 -9 -8 -8 -8 -7 -7 ------- Run | Scr Mat Min Exi Min Mat Gar Mat Fac Gar Traps Triggered 10 | . 4 . . . 1 2 2 1 . Indirectly . | . . . . . . . . . . Trap Hack Attempts . | . . . . . . . . . . Triggered . | . . . . . . . . . . Disarmed . | . . . . . . . . . . Reprogrammed . | . . . . . . . . . . Reused . | . . . . . . . . . . Traps Extracted . | . . . . . . . . . . Installed . | . . . . . . . . . . Triggered 1 | . . . . . 1 . . . . Machines | -11 -10 -10 -10 -9 -8 -8 -8 -7 -7 ---------- Run | Scr Mat Min Exi Min Mat Gar Mat Fac Gar Machines Disabled 6 | . 1 . . . 4 1 . . . Max in Single Turn 1 | . 1 . . . 1 1 . . . Garrison Relay 1 | . . . . . . 1 . . . Machines Sabotaged . | . . . . . . . . . . Garrisons Compromised . | . . . . . . . . . . Overloaded Fab Kills . | . . . . . . . . . . Hacking | -11 -10 -10 -10 -9 -8 -8 -8 -7 -7 --------- Run | Scr Mat Min Exi Min Mat Gar Mat Fac Gar Machines Accessed 25 | . 9 . 1 1 8 . 3 3 . Terminals 15 | . 7 . . 1 5 . 2 . . Fabricators 1 | . . . . . . . . 1 . Repair Stations 1 | . . . . . 1 . . . . Recycling Units 3 | . 2 . . . . . 1 . . Scanalyzers 2 | . . . . . 1 . . 1 . Garrison Access 2 | . . . . . 1 . . 1 . Total Hacks 70 | . 25 . 1 2 29 . 6 7 . Successful 41 | . 11 . 1 1 23 . 2 3 . Failed 29 | . 14 . . 1 6 . 4 4 . Catastrophic 4 | . 1 . . 1 . . 2 . . Database Lockouts . | . . . . . . . . . . Manual 47 | . 23 . . 2 15 . 6 1 . Terminals 49 | . 23 . . 2 19 . 5 . . Fabricators 2 | . . . . . . . . 2 . Repair Stations 4 | . . . . . 4 . . . . Recycling Units 3 | . 2 . . . . . 1 . . Scanalyzers 7 | . . . . . 4 . . 3 . Garrison Access 4 | . . . . . 2 . . 2 . Terminal Hacks 14 | . 6 . 1 . 6 . 1 . . Record 1 | . . . 1 . . . . . . Part Schematic 1 | . 1 . . . . . . . . Robot Analysis 4 | . 3 . . . 1 . . . . Prototype ID Bank 3 | . 1 . . . 2 . . . . Terminal Index 2 | . 1 . . . 1 . . . . Unreport Threat 1 | . . . . . . . 1 . . Locate Traps 2 | . . . . . 2 . . . . Fabricator Hacks . | . . . . . . . . . . Repair Station Hacks 4 | . . . . . 4 . . . . Scan Component 2 | . . . . . 2 . . . . Repair 2 | . . . . . 2 . . . . Recycling Unit Hacks . | . . . . . . . . . . Scanalyzer 5 | . . . . . 4 . . 1 . Insert Component 3 | . . . . . 2 . . 1 . Analyze 2 | . . . . . 2 . . . . Garrison Access Hacks 2 | . . . . . 1 . . 1 . Unlock Access 2 | . . . . . 1 . . 1 . Unauthorized Hacks 16 | . 5 . . 1 8 . 1 1 . Terminals 11 | . 3 . . 1 7 . . . . Track 2 | . 1 . . . 1 . . . . Assimilate 1 | . . . . . 1 . . . . Botnet 5 | . 1 . . . 4 . . . . Operators 2 | . 1 . . . 1 . . . . Search 1 | . . . . 1 . . . . . Fabricators . | . . . . . . . . . . Repair Stations . | . . . . . . . . . . Recycling Units 3 | . 2 . . . . . 1 . . Tunnel 3 | . 2 . . . . . 1 . . Scanalyzers . | . . . . . . . . . . Garrison Access 2 | . . . . . 1 . . 1 . Eject 2 | . . . . . 1 . . 1 . Data Cores Recovered . | . . . . . . . . . . Used . | . . . . . . . . . . Hacking Detections 20 | . 7 . . 1 7 . 2 3 . Full Trace Events . | . . . . . . . . . . Feedback Events . | . . . . . . . . . . Feedback Blocked . | . . . . . . . . . . Robot Schematics Acquired . | . . . . . . . . . . Robots Built . | . . . . . . . . . . Authchips . | . . . . . . . . . . Time . | . . . . . . . . . . Total Robot Build Rating . | . . . . . . . . . . Part Schematics Acquired 3 | . 1 . . . 2 . . . . Parts Built . | . . . . . . . . . . Authchips . | . . . . . . . . . . Time . | . . . . . . . . . . Total Part Build Rating . | . . . . . . . . . . Parts Repaired 2 | . . . . . 2 . . . . Time 64 | . . . . . 64 . . . . Parts Recycled . | . . . . . . . . . . Recycled Matter . | . . . . . . . . . . Retrieved Matter . | . . . . . . . . . . Retrieved Components . | . . . . . . . . . . Parts Scanalyzed 3 | . . . . . 2 . . 1 . Part Schematics Acquired 2 | . . . . . 2 . . . . Parts Damaged . | . . . . . . . . . . Bothacking | -11 -10 -10 -10 -9 -8 -8 -8 -7 -7 ------------ Run | Scr Mat Min Exi Min Mat Gar Mat Fac Gar Used RIF Installer 1 | . . . . . . 1 . . . Robots Hacked 1 | . . . . . . . . 1 . Non-combat . | . . . . . . . . . . Combat 1 | . . . . . . . . 1 . Robot Hacks Applied 2 | . . . . . . . . 2 . find_garrison 1 | . . . . . . . . 1 . overwrite_iff 1 | . . . . . . . . 1 . Relay Couplers Released 13 | . . . . . 4 5 . 4 . Ejected 8 | . . . . . 4 . . 4 . Machine Destruction 5 | . . . . . . 5 . . . Attached 2 | . . . . . . . . 2 . Fabnet Peak Effective % . | . . . . . . . . . . Robots Rewired 4 | . . . 3 . . . 1 . . Allies Hacked 1 | . . . . . . . . 1 . Hacks Repelled . | . . . . . . . . . . Allies | -11 -10 -10 -10 -9 -8 -8 -8 -7 -7 -------- Run | Scr Mat Min Exi Min Mat Gar Mat Fac Gar Total Allies 10 | . . 3 3 1 1 . 1 1 . Largest Group 6 | . . 3 6 6 6 1 1 1 . Highest-Rated Group 100 | . . 40 77 100 100 10 15 32 . Highest-Rated Ally 32 | . . 16 21 31 31 10 15 32 . Total Orders 1 | . . . . . . 1 . . . STAY 1 | . . . . . . 1 . . . Ally Attacks 99 | . . . . 18 77 . 1 3 . Total Damage 1284 | . . . . 210 944 . 14 116 . Kills 22 | . . . . 3 18 . . 1 . Allies Corrupted . | . . . . . . . . . . Allies Melted . | . . . . . . . . . . Intel | -11 -10 -10 -10 -9 -8 -8 -8 -7 -7 ------- Run | Scr Mat Min Exi Min Mat Gar Mat Fac Gar Robot Analysis Total 4 | . 3 . . . 1 . . . . Derelict Logs Recovered . | . . . . . . . . . . Drone Launches . | . . . . . . . . . . Drone Recoveries . | . . . . . . . . . . Exploration | -11 -10 -10 -10 -9 -8 -8 -8 -7 -7 ------------- Run | Scr Mat Min Exi Min Mat Gar Mat Fac Gar Turns Passed 8633 | 86 891 1371 1615 160 2018 581 566 1212 133 Spaces Moved 3918 | 63 444 605 451 63 940 311 261 720 60 Core 11 | 11 . . . . . . . . . Treads 1957 | 21 444 605 451 63 373 . . . . Legs . | . . . . . . . . . . Wheels 1950 | 31 . . . . 567 311 261 720 60 Hover . | . . . . . . . . . . Flight . | . . . . . . . . . . Fastest Speed 50 | 50 160 160 240 240 105 110 110 110 145 Average Speed 169 | 118 160 217 240 240 165 124 123 134 145 Slowest Speed 240 | 200 160 240 240 240 240 125 150 145 145 Overloaded Moves . | . . . . . . . . . . Propulsion Burnouts . | . . . . . . . . . . Robots Hopped . | . . . . . . . . . . Cave-ins Triggered . | . . . . . . . . . . Exploration Rate (%) 48 | 4 91 96 89 24 72 41 30 22 18 Regions Visited 9 Branch Regions 3 Pre-discovered Areas 4 | . 2 . 1 . . . 1 . . Known Exits Taken 2 | . . . . . 1 . . 1 . Unknown Exits Taken 6 | 1 1 1 1 1 . . 1 . . Scrap Searched 3 | . . 3 . . . . . . . Spaces Dug 8 | . . . . . . . . 2 6 Terrain Destroyed 83 | . . 12 . . 21 13 2 12 23 Melee 2 | . . . . . . . . 2 . Projectile . | . . . . . . . . . . AOE 81 | . . 12 . . 21 13 2 10 23 Terrain Rammed . | . . . . . . . . . . Walls Destroyed . | . . . . . . . . . . Machines Disabled . | . . . . . . . . . . Actions | -11 -10 -10 -10 -9 -8 -8 -8 -7 -7 --------- Run | Scr Mat Min Exi Min Mat Gar Mat Fac Gar Total 5401 | 73 532 633 956 67 1320 435 432 870 83 Wait 878 | . 10 8 439 2 225 60 93 41 . Move 3908 | 62 443 604 450 62 939 309 260 719 60 Hop . | . . . . . . . . . . Pick Up 92 | 3 11 3 8 . 30 10 7 20 . Fast Attach 38 | 6 5 . 1 . 13 2 4 6 1 Attach 38 | . 3 . . . 10 8 5 9 3 Detach 12 | 2 . . 1 . 3 . 3 3 . Swap 39 | . 1 3 1 . 10 3 7 12 2 Drop 75 | . 9 . 3 . 40 4 9 9 1 Fire 273 | . 48 12 15 2 49 39 43 49 16 Melee 2 | . . . . . . . . 2 . Ram 1 | . . . . . . . 1 . . Kick . | . . . . . . . . . . Crush 7 | . 2 3 . 1 1 . . . . Escape Stasis . | . . . . . . . . . . Rewire 38 | . . . 38 . . . . . . Trap . | . . . . . . . . . . Miscellaneous . | . . . . . . . . . . Route ------- -11/Scrapyard -10/Materials (discovered 3 exits: [*Mat x2] / [*Min]) -10/Mines (discovered 3 exits: [*Mat x2] / *Exi) -10/Exiles -9/Mines -8/Materials (discovered 5 exits: *Fac x3 / *Sto / Gar) -8/Garrison -8/Materials -7/Factory (discovered 2 exits: [*Fac] / Gar) -7/Garrison History --------- Turn | Location | Event 2 | -11/Scrapyard | Met Revision 17 14 | -11/Scrapyard | Discovered new exit (range 16) 87 | -11/Scrapyard | Entered Materials 314 | -10/Materials | Build established: Mutant 367 | -10/Materials | Discovered new exit (range 15) 632 | -10/Materials | Discovered new exit (range 16) 804 | -10/Materials | Discovered new exit (range 9) 978 | -10/Materials | Entered Mines 1332 | -10/Mines | Discovered new exit (range 15) 1630 | -10/Mines | Received a Rocket Launcher from a helpful Derelict 1889 | -10/Mines | Discovered new exit (range 9) 2187 | -10/Mines | Assisted by bots powering up and referring to "LRC-V3" 2337 | -10/Mines | Deemed a non-threat by the Exiles lab entrance 2339 | -10/Mines | Discovered new exit (range 5) 2349 | -10/Mines | Entered Exiles 2349 | -10/Exiles | Found Exiles lab destroyed 2349 | -10/Exiles | Accompanied by 3 allies 2785 | -10/Exiles | Build established: Commander-Mutant 3472 | -10/Exiles | Learned location of Zion (-7) 3943 | -10/Exiles | Discovered new exit (range 11) 3964 | -10/Exiles | Entered Mines 3964 | -9/Mines | Accompanied by 6 allies 4095 | -9/Mines | Discovered new exit (range 8) 4100 | -9/Mines | Received a Mining Laser from a helpful Derelict 4124 | -9/Mines | Entered Materials 4124 | -8/Materials | Accompanied by 6 allies 4124 | -8/Materials | Evolved 4 slots: Utility x4 4412 | -8/Materials | Discovered new exit (range 13) 4519 | -8/Materials | Identified exit to Storage 4878 | -8/Materials | Build established: Scavenger-Skirmisher 5010 | -8/Materials | Discovered new exit (range 12) 5561 | -8/Materials | Repaired Imp. Propulsion Shielding 5588 | -8/Materials | Repaired Wheel 5685 | -8/Materials | Build established: Mutant 5797 | -8/Materials | Discovered new exit (range 17) 6063 | -8/Materials | Discovered new exit (range 18) 6068 | -8/Materials | Garrison activated, responded to threat 6135 | -8/Materials | Identified exit to Garrison 6142 | -8/Materials | Entered Garrison 6142 | -8/Garrison | Accompanied by 1 ally 6240 | -8/Garrison | Triggered checkpoint 6320 | -8/Garrison | Triggered checkpoint 6335 | -8/Garrison | Lost 3 parts (2u1w) 6370 | -8/Garrison | Triggered checkpoint 6375 | -8/Garrison | Core integrity fell below 50% 6414 | -8/Garrison | Lost 3 parts (1p1u1w) 6469 | -8/Garrison | Discovered new exit (range 11) 6489 | -8/Garrison | Installed Relay Interface Framework 6608 | -8/Garrison | Triggered checkpoint 6624 | -8/Garrison | Garrison Relay disabled 6723 | -8/Garrison | Entered Materials 6927 | -8/Materials | Build established: Bothacker-Mutant 7008 | -8/Materials | Core integrity fell below 20% 7269 | -8/Materials | Discovered new exit (range 18) 7289 | -8/Materials | Entered Factory 7289 | -7/Factory | Evolved 2 slots: Power x1, Utility x1 7385 | -7/Factory | Lost 3 parts (1p1u1w) 7435 | -7/Factory | Discovered new exit (range 6) 7446 | -7/Factory | Lost 3 parts (1n2u) 8493 | -7/Factory | Identified exit to Garrison 8501 | -7/Factory | Entered Garrison 8524 | -7/Garrison | Triggered checkpoint 8602 | -7/Garrison | Triggered checkpoint 8604 | -7/Garrison | Triggered checkpoint 8612 | -7/Garrison | Triggered checkpoint 8632 | -7/Garrison | Core integrity fell below 50% 8634 | -7/Garrison | Self-destructed Last Messages --------------- 08527_ Nuclear Core destroyed. 08529_ S-27 Virus destroyed. 08531_ Destroyed Lgt. Nuclear Core. 08533_ S-27 Virus destroyed. 08533_ Adv. Beam Rifle destroyed. 08533_ Destroyed Adv. Beam Rifle. 08540_ Dropped Nuclear Core. 08541_ Acquired Lgt. Nuclear Core. 08544_ Acquired 3 matter. 08545_ The unstable cave ceiling collapses. 08602_ Beams of light sweep through the air. An alarm sounds. 08606_ S-27 Virus destroyed. 08612_ Rocket Launcher destroyed. 08616_ Com. Wheel destroyed. 08619_ Lgt. Nuclear Core destroyed. 08625_ Y-54 Guardian misfires. 08627_ Lgt. Nuclear Core destroyed. 08630_ Adv. Beam Rifle destroyed. 08632_ Y-54 Guardian misfires. 08633_ Lightning Gun destroyed. Map ----- +----------------------------------------------------+ | ?????????????????????????????????????????????????? | | ?????????????????????????????????????????????????? | | ?????????????????????????????????????????????????? | | ?????????????????????????????????????????????????? | | ?????????????????????????????????????????????????? | | ?????????????????????????????????????????????????? | | ??????????????????????????????#######????????????? | | ??????????????????????????????# [ #????????????? | | ??????????????????????######### *###??????????? | | ??????????????????????# #??????????? | | ??????????????????????# ###### # #??????????? | | ?????????????????????#"""""??# # #??????????? | | ?????????????????????######??### ## #???#####??? | | ???????????????????????????????# #### #???# #??? | | ???????????????????????????????# #### ##### #??? | | ???????????????????????????????# # #??? | | ???????????????????????????????# ## #??? | | ???????????????????????????????# ## ^##########??? | | ???????????????????????????????# ## ????????????? | | ???????????????????????????????# ## ????????????? | | ???????????????????????????????# ## ????????????? | | ????????????????????????######## ## ????????????? | | ????????????????????????# # ????????????? | | ????????????????????????# ######### ????????????? | | ????????????????????????# #???????# ????????????? | | ????????????????????????#@#???????# ????????????? | | ????????????????????????#s#???????# ????????????? | | ??????????????????????? Y ??????# ?????????????? | | ????????????????????? ???? ?????????????? | | ??????????????????? ?? ?????????????? | | ?????????????????# # ####?##?????????????? | | ?????????????????# # ###???????????????????? | | ???????????????? ? [s ?????????????????????? | | ??????????????? ?? ?????????????????????? | | ????????????? ?? ?????????????????????? | | ????????????" ??? ????????????????????? | | ????????????# #??? ## ##????????????????????? | | ????????????# ^???? ? Y #?????????????????????? | | ????????????# ???? ? ?????????????????????? | | ????????????# ????? ?? ?????????????????????? | | ????????????#????? ?? ?????????????????????? | | ?????????????????? ?? #?????????????????????? | | ?????????????????# ???# #??????????????????????? | | ??????????????????##???? ???????????????????????? | | ???????????????????????? ???????????????????????? | | ???????????????????????? ???????????????????????? | | ?????????????????????????????????????????????????? | | ?????????????????????????????????????????????????? | | ?????????????????????????????????????????????????? | | ?????????????????????????????????????????????????? | +----------------------------------------------------+ Best States ------------- Heat Dissipation 48 Coolant Potential 65 Energy Generation 23 Energy Capacity 530 Matter Stores 300 Matter Capacity 300 Sight Range 20 Robot Scan Range 15 Terrain Scan Density 10 Cloak Strength 3 EM Shielding 2 Armor Coverage 300 Propulsion Shielding 66 Utility Shielding 66 Evasion (%) 42 Targeting Accuracy 8 Recoil Reduction 2 Particle Charging 15 Salvage Targeting 2 Offensive Hacking 10 Relay Coupler Types 2 Relay Coupler Value 14 Item Schematics ----------------- Huge Storage Unit | -10/Materials | Hacked Mak. System Restoration Module | -8/Materials | Scanalyzed Mak. Cloaking Device | -8/Materials | Scanalyzed Robot Schematics ------------------ None Fabricated ------------ Nothing Alien Tech Used ----------------- None Achievements -------------- None Challenges ------------ None Game ------ Seed MicrowarpElectronJammer Manual? 0 Play Time 00:44:42 Cumulative 159.7 hours Start 2022.02.17 @ 23:55:07 End 2022.02.18 @ 03:59:08 Sessions 3 Manual Loads 0 Difficulty Rogue Special Mode None Game No. 267 Rogue 250 Adventurer 4 Explorer 13 Win Type - Total 8 Types 6/0/0/2/0/0/0/0/0 Lore% 64 Gallery% 80 Achievement% 68 Wizard Run 0 Options --------- ASCII 0 Keyboard 1 Movement Numpad Keybinds 0 Fullscreen 1 Font 18/SmallcapsGlow Map View 76x50 Tactical HUD 1 Map Filters NONE Filters NONE Steam 1 RUN: 20de79c1-f089-4d55-9114-b2e246f82d75